[Event "Late-Titled-Tuesday-Blitz-June-04-2024"]
[Site "Chess.com"]
[Date "2024.06.04"]
[Round "3"]
[White "Onischuk_V"]
[Black "Romkachess"]
[Result "1-0"]
[WhiteElo "2848"]
[BlackElo "2507"]
[TimeControl "180+1"]
[EndTime "14:27:37 PDT"]
[Termination "Onischuk_V won by resignation"]

1. e4 {[%clk 0:03:00.9]} 1... c5 {[%clk 0:02:59.6]} 2. Nf3 {[%clk 0:03:00.6]}
2... d6 {[%clk 0:02:59.5]} 3. d4 {[%clk 0:02:59.8]} 3... cxd4 {[%clk 0:02:59.6]}
4. Nxd4 {[%clk 0:03:00.3]} 4... Nf6 {[%clk 0:03:00]} 5. Nc3 {[%clk 0:03:00.3]}
5... a6 {[%clk 0:03:00.4]} 6. a4 {[%clk 0:02:54.4]} 6... e5 {[%clk 0:02:52]} 7.
Nf3 {[%clk 0:02:53.5]} 7... Be7 {[%clk 0:02:48.8]} 8. Bc4 {[%clk 0:02:48.5]}
8... O-O {[%clk 0:02:46.4]} 9. O-O {[%clk 0:02:47.8]} 9... Be6 {[%clk
0:02:44.6]} 10. Qe2 {[%clk 0:02:47.5]} 10... Qc7 {[%clk 0:02:43.4]} 11. Ba2
{[%clk 0:02:47]} 11... Bxa2 {[%clk 0:02:39.6]} 12. Rxa2 {[%clk 0:02:46.6]} 12...
Nbd7 {[%clk 0:02:39.4]} 13. Rd1 {[%clk 0:02:42.6]} 13... Rfc8 {[%clk 0:02:37.6]}
14. Bg5 {[%clk 0:02:35.3]} 14... Qc4 {[%clk 0:02:37.5]} 15. Qxc4 {[%clk
0:02:34.1]} 15... Rxc4 {[%clk 0:02:38.4]} 16. Nd2 {[%clk 0:02:34.2]} 16... Rc7
{[%clk 0:02:21.4]} 17. Nf1 {[%clk 0:02:23.2]} 17... h6 {[%clk 0:02:15.1]} 18.
Bxf6 {[%clk 0:02:22.6]} 18... Nxf6 {[%clk 0:02:14.9]} 19. Ne3 {[%clk 0:02:22.7]}
19... Rxc3 {[%clk 0:02:12.2]} 20. bxc3 {[%clk 0:02:21.7]} 20... Nxe4 {[%clk
0:02:12.8]} 21. Nd5 {[%clk 0:02:21.9]} 21... Bf8 {[%clk 0:02:05.1]} 22. Rb2
{[%clk 0:02:18.9]} 22... Nc5 {[%clk 0:01:41.9]} 23. a5 {[%clk 0:02:19]} 23... f5
{[%clk 0:01:36.8]} 24. c4 {[%clk 0:02:13.8]} 24... Rd8 {[%clk 0:01:34.9]} 25. g3
{[%clk 0:02:04.1]} 25... Kf7 {[%clk 0:01:35]} 26. Kg2 {[%clk 0:02:03.7]} 26...
g5 {[%clk 0:01:34.9]} 27. Rdb1 {[%clk 0:02:01.9]} 27... Rd7 {[%clk 0:01:31.9]}
28. Rb6 {[%clk 0:02:01.9]} 28... e4 {[%clk 0:01:26.3]} 29. Ne3 {[%clk
0:01:43.7]} 29... Ke6 {[%clk 0:01:21.1]} 30. Nd5 {[%clk 0:01:39.1]} 30... Ke5
{[%clk 0:01:18.1]} 31. Rd1 {[%clk 0:01:36.7]} 31... Bg7 {[%clk 0:00:46.8]} 32.
Ne3 {[%clk 0:01:31.5]} 32... f4 {[%clk 0:00:40.4]} 33. Rd5+ {[%clk 0:01:30.7]}
33... Ke6 {[%clk 0:00:36.2]} 34. Nf5 {[%clk 0:01:28.4]} 34... Be5 {[%clk
0:00:25]} 35. Rxc5 {[%clk 0:01:03.6]} 35... Kxf5 {[%clk 0:00:25]} 36. Rd5 {[%clk
0:00:59.3]} 36... Rc7 {[%clk 0:00:25.4]} 37. c5 {[%clk 0:00:57.9]} 37... Rxc5
{[%clk 0:00:11.5]} 38. Rxc5 {[%clk 0:00:56.7]} 38... dxc5 {[%clk 0:00:12.4]} 39.
Rxb7 {[%clk 0:00:54.6]} 39... Bc3 {[%clk 0:00:11.3]} 40. Rc7 {[%clk 0:00:52.4]}
40... Bd4 {[%clk 0:00:10.6]} 41. Rc6 {[%clk 0:00:51.7]} 41... f3+ {[%clk
0:00:10.1]} 42. Kf1 {[%clk 0:00:51.3]} 42... h5 {[%clk 0:00:10.3]} 43. Rxa6
{[%clk 0:00:50.7]} 43... h4 {[%clk 0:00:10.5]} 44. Rc6 {[%clk 0:00:48.1]} 44...
e3 {[%clk 0:00:10.3]} 45. fxe3 {[%clk 0:00:47.7]} 45... Bxe3 {[%clk 0:00:11.2]}
46. a6 {[%clk 0:00:47.6]} 46... c4 {[%clk 0:00:09.7]} 47. Rxc4 {[%clk
0:00:47.6]} 47... hxg3 {[%clk 0:00:09.3]} 48. hxg3 {[%clk 0:00:47.6]} 48... Ke5
{[%clk 0:00:09.3]} 49. Rc7 {[%clk 0:00:45.2]} 49... Kf5 {[%clk 0:00:08.7]} 50.
a7 {[%clk 0:00:45]} 50... Bxa7 {[%clk 0:00:09]} 51. Rxa7 {[%clk 0:00:45.3]}
51... Kg4 {[%clk 0:00:09.9]} 52. Kf2 {[%clk 0:00:45.5]} 1-0

[Event "Late-Titled-Tuesday-Blitz-June-04-2024"]
[Site "Chess.com"]
[Date "2024.06.04"]
[Round "3"]
[White "1g60-1"]
[Black "Bob_2004"]
[Result "0-1"]
[WhiteElo "2460"]
[BlackElo "2641"]
[TimeControl "180+1"]
[EndTime "14:27:38 PDT"]
[Termination "Bob_2004 won by resignation"]

1. e4 {[%clk 0:03:00.9]} 1... c5 {[%clk 0:03:00.3]} 2. Nf3 {[%clk 0:03:00.6]}
2... Nf6 {[%clk 0:03:01]} 3. Nc3 {[%clk 0:02:58.2]} 3... d5 {[%clk 0:03:01.2]}
4. exd5 {[%clk 0:02:55]} 4... Nxd5 {[%clk 0:03:02.1]} 5. Bc4 {[%clk 0:02:53.7]}
5... Nb6 {[%clk 0:03:02.4]} 6. Bb5+ {[%clk 0:02:51.3]} 6... Bd7 {[%clk
0:03:02.7]} 7. Bxd7+ {[%clk 0:02:50.6]} 7... Qxd7 {[%clk 0:03:03.6]} 8. O-O
{[%clk 0:02:50.7]} 8... Nc6 {[%clk 0:03:04]} 9. d3 {[%clk 0:02:51.2]} 9... e6
{[%clk 0:03:04.6]} 10. Re1 {[%clk 0:02:49.4]} 10... Be7 {[%clk 0:03:05.1]} 11.
h3 {[%clk 0:02:48.8]} 11... O-O {[%clk 0:03:05]} 12. Bf4 {[%clk 0:02:48.6]}
12... Nd5 {[%clk 0:03:04]} 13. Bd2 {[%clk 0:02:47.6]} 13... Rac8 {[%clk
0:02:57]} 14. Qe2 {[%clk 0:02:47.8]} 14... Nd4 {[%clk 0:02:56.1]} 15. Qd1 {[%clk
0:02:46.2]} 15... Rfd8 {[%clk 0:02:54]} 16. Ne4 {[%clk 0:02:40.3]} 16... h6
{[%clk 0:02:30.3]} 17. Ne5 {[%clk 0:02:38.8]} 17... Qc7 {[%clk 0:02:23.3]} 18.
Qh5 {[%clk 0:02:33.8]} 18... Bf8 {[%clk 0:02:13.8]} 19. c4 {[%clk 0:02:28]}
19... Nf5 {[%clk 0:01:59.8]} 20. cxd5 {[%clk 0:02:21.5]} 20... Qxe5 {[%clk
0:01:59.6]} 21. dxe6 {[%clk 0:02:19.3]} 21... Qxe6 {[%clk 0:01:44.1]} 22. Bc3
{[%clk 0:01:41.4]} 22... Qg6 {[%clk 0:01:37.6]} 23. Qxg6 {[%clk 0:01:30.9]}
23... fxg6 {[%clk 0:01:38.5]} 24. Rad1 {[%clk 0:01:31]} 24... Rd7 {[%clk
0:01:38]} 25. g4 {[%clk 0:01:26.3]} 25... Nh4 {[%clk 0:01:37.9]} 26. Re3 {[%clk
0:01:21.1]} 26... Rcd8 {[%clk 0:01:38.2]} 27. b3 {[%clk 0:01:13.8]} 27... g5
{[%clk 0:01:31.4]} 28. Ng3 {[%clk 0:00:51.7]} 28... Bd6 {[%clk 0:01:14.4]} 29.
Nh5 {[%clk 0:00:47.4]} 29... Bf4 {[%clk 0:01:05.4]} 30. Nxf4 {[%clk 0:00:20.3]}
30... gxf4 {[%clk 0:01:06.3]} 31. Re4 {[%clk 0:00:18.3]} 31... Rxd3 {[%clk
0:01:03]} 32. Rxd3 {[%clk 0:00:18.4]} 32... Rxd3 {[%clk 0:01:03.9]} 33. Be5
{[%clk 0:00:18.5]} 33... g5 {[%clk 0:00:59.9]} 34. Bb8 {[%clk 0:00:17.1]} 34...
a6 {[%clk 0:00:39.6]} 35. Ba7 {[%clk 0:00:13.7]} 35... Nf3+ {[%clk 0:00:29.3]}
36. Kg2 {[%clk 0:00:12.6]} 36... Nh4+ {[%clk 0:00:29.9]} 37. Kg1 {[%clk
0:00:12.9]} 37... Rc3 {[%clk 0:00:30.1]} 38. Rc4 {[%clk 0:00:12.6]} 38... Rxh3
{[%clk 0:00:25.5]} 39. Bxc5 {[%clk 0:00:12]} 39... Rd3 {[%clk 0:00:21.9]} 40.
Bd4 {[%clk 0:00:10.2]} 40... Rxd4 {[%clk 0:00:21.2]} 0-1

[Event "Late-Titled-Tuesday-Blitz-June-04-2024"]
[Site "Chess.com"]
[Date "2024.06.04"]
[Round "3"]
[White "RealPerangel"]
[Black "Msb2"]
[Result "0-1"]
[WhiteElo "2740"]
[BlackElo "3041"]
[TimeControl "180+1"]
[EndTime "14:27:40 PDT"]
[Termination "Msb2 won by resignation"]

1. e4 {[%clk 0:02:52.5]} 1... e6 {[%clk 0:02:59.9]} 2. d4 {[%clk 0:02:50.5]}
2... d5 {[%clk 0:03:00.5]} 3. Nd2 {[%clk 0:02:49.7]} 3... c5 {[%clk 0:03:00.8]}
4. Ngf3 {[%clk 0:02:42.6]} 4... Nf6 {[%clk 0:03:01]} 5. exd5 {[%clk 0:02:34.8]}
5... Nxd5 {[%clk 0:03:01.9]} 6. dxc5 {[%clk 0:02:32.1]} 6... Bxc5 {[%clk
0:03:02.8]} 7. Bb5+ {[%clk 0:02:31]} 7... Bd7 {[%clk 0:03:02.9]} 8. a4 {[%clk
0:02:27.3]} 8... O-O {[%clk 0:03:02.6]} 9. O-O {[%clk 0:02:26.6]} 9... a6 {[%clk
0:03:02.8]} 10. Bd3 {[%clk 0:02:25.9]} 10... h6 {[%clk 0:02:58.6]} 11. c3 {[%clk
0:02:25.1]} 11... Qc7 {[%clk 0:02:55.9]} 12. Ne4 {[%clk 0:02:11.6]} 12... Be7
{[%clk 0:02:55.7]} 13. Re1 {[%clk 0:02:00.3]} 13... Nc6 {[%clk 0:02:53.5]} 14.
Ng3 {[%clk 0:02:00.5]} 14... Rad8 {[%clk 0:02:52.1]} 15. Qe2 {[%clk 0:02:00.7]}
15... Nf4 {[%clk 0:02:46.2]} 16. Bxf4 {[%clk 0:01:57.3]} 16... Qxf4 {[%clk
0:02:47.1]} 17. a5 {[%clk 0:01:54.4]} 17... g6 {[%clk 0:02:42.3]} 18. Bc2 {[%clk
0:01:50.2]} 18... Kg7 {[%clk 0:02:41.3]} 19. Ne4 {[%clk 0:01:44.5]} 19... Bc8
{[%clk 0:02:36.9]} 20. b4 {[%clk 0:01:41.6]} 20... e5 {[%clk 0:02:27.9]} 21. Ng3
{[%clk 0:01:33.5]} 21... Bg4 {[%clk 0:02:26.3]} 22. Be4 {[%clk 0:01:31.5]} 22...
Bf6 {[%clk 0:02:12]} 23. h3 {[%clk 0:01:28.2]} 23... Bd7 {[%clk 0:02:12]} 24.
Rad1 {[%clk 0:01:27.3]} 24... Rfe8 {[%clk 0:02:10.8]} 25. Rd6 {[%clk 0:01:25.5]}
25... Bc8 {[%clk 0:01:58.3]} 26. Red1 {[%clk 0:01:21.4]} 26... Rxd6 {[%clk
0:01:54.2]} 27. Rxd6 {[%clk 0:01:22]} 27... Rd8 {[%clk 0:01:55.1]} 28. Rxd8
{[%clk 0:01:20.8]} 28... Nxd8 {[%clk 0:01:56]} 29. Qd3 {[%clk 0:01:18.6]} 29...
Qc1+ {[%clk 0:01:53.2]} 30. Kh2 {[%clk 0:01:18.7]} 30... Be6 {[%clk 0:01:51.8]}
31. h4 {[%clk 0:01:13.7]} 31... h5 {[%clk 0:01:46.1]} 32. Nf1 {[%clk 0:01:03.9]}
32... Qb2 {[%clk 0:01:26.1]} 33. Kg1 {[%clk 0:01:01.4]} 33... Qa2 {[%clk
0:01:25.1]} 34. Ne3 {[%clk 0:01:00.7]} 34... Qa4 {[%clk 0:01:18.3]} 35. Bd5
{[%clk 0:00:59.6]} 35... Bc8 {[%clk 0:01:09.9]} 36. Be4 {[%clk 0:00:56.1]} 36...
Ne6 {[%clk 0:01:08.4]} 37. Nd5 {[%clk 0:00:55.1]} 37... Nf4 {[%clk 0:01:08.9]}
38. Nxf4 {[%clk 0:00:54.3]} 38... exf4 {[%clk 0:01:09.8]} 39. Nd4 {[%clk
0:00:53.1]} 39... Bxh4 {[%clk 0:01:08.5]} 40. Qf3 {[%clk 0:00:53.1]} 40... Bf6
{[%clk 0:01:08.2]} 41. Bxb7 {[%clk 0:00:50.4]} 41... Bxb7 {[%clk 0:01:05.1]} 42.
Qxb7 {[%clk 0:00:51.1]} 42... Qa1+ {[%clk 0:01:05.6]} 43. Kh2 {[%clk 0:00:51.6]}
43... Qxc3 {[%clk 0:01:05.9]} 44. Ne6+ {[%clk 0:00:50.9]} 44... Kg8 {[%clk
0:01:04.8]} 45. Nxf4 {[%clk 0:00:45.1]} 45... Be5 {[%clk 0:01:04.7]} 46. g3
{[%clk 0:00:45.1]} 46... Qc4 {[%clk 0:00:48.9]} 47. Nd5 {[%clk 0:00:37.5]} 47...
h4 {[%clk 0:00:43]} 48. b5 {[%clk 0:00:23.7]} 48... hxg3+ {[%clk 0:00:43.2]} 49.
fxg3 {[%clk 0:00:23.7]} 49... Qh4+ {[%clk 0:00:43.9]} 50. Kg1 {[%clk 0:00:23.8]}
50... Qxg3+ {[%clk 0:00:44.8]} 51. Kf1 {[%clk 0:00:24.4]} 51... Qf3+ {[%clk
0:00:44.4]} 52. Ke1 {[%clk 0:00:24.8]} 52... Bc3+ {[%clk 0:00:44.3]} 53. Nxc3
{[%clk 0:00:24.5]} 53... Qxb7 {[%clk 0:00:45.2]} 54. b6 {[%clk 0:00:24.9]} 54...
Qe7+ {[%clk 0:00:44.7]} 55. Kd2 {[%clk 0:00:25.1]} 55... Qb4 {[%clk 0:00:45.3]}
0-1

[Event "Late-Titled-Tuesday-Blitz-June-04-2024"]
[Site "Chess.com"]
[Date "2024.06.04"]
[Round "3"]
[White "AustinThomas12345"]
[Black "Vahe_Danielyan"]
[Result "1-0"]
[WhiteElo "2479"]
[BlackElo "2651"]
[TimeControl "180+1"]
[EndTime "14:27:43 PDT"]
[Termination "AustinThomas12345 won by resignation"]

1. e4 {[%clk 0:03:00.9]} 1... e5 {[%clk 0:02:57.7]} 2. Nf3 {[%clk 0:03:01.1]}
2... Nc6 {[%clk 0:02:58]} 3. Nc3 {[%clk 0:02:58.7]} 3... d6 {[%clk 0:02:46.8]}
4. Bc4 {[%clk 0:02:56.2]} 4... Be7 {[%clk 0:02:46.7]} 5. d4 {[%clk 0:02:53.8]}
5... exd4 {[%clk 0:02:47.6]} 6. Nxd4 {[%clk 0:02:54]} 6... Nf6 {[%clk
0:02:48.5]} 7. Nxc6 {[%clk 0:02:53.3]} 7... bxc6 {[%clk 0:02:49.4]} 8. O-O
{[%clk 0:02:53.3]} 8... O-O {[%clk 0:02:49.7]} 9. Bb3 {[%clk 0:02:53.1]} 9...
Nd7 {[%clk 0:02:49.3]} 10. Be3 {[%clk 0:02:52.6]} 10... Bf6 {[%clk 0:02:48.9]}
11. Bd4 {[%clk 0:02:50.2]} 11... Bxd4 {[%clk 0:02:48.2]} 12. Qxd4 {[%clk
0:02:51.1]} 12... Qf6 {[%clk 0:02:46.8]} 13. Qxf6 {[%clk 0:02:49.6]} 13... Nxf6
{[%clk 0:02:47.7]} 14. Rfe1 {[%clk 0:02:39.6]} 14... Re8 {[%clk 0:02:38.4]} 15.
f4 {[%clk 0:02:37.6]} 15... Be6 {[%clk 0:02:37.8]} 16. e5 {[%clk 0:02:26.7]}
16... Bxb3 {[%clk 0:02:36.9]} 17. axb3 {[%clk 0:02:25.6]} 17... dxe5 {[%clk
0:02:33.9]} 18. fxe5 {[%clk 0:02:26.5]} 18... Ng4 {[%clk 0:02:34]} 19. e6 {[%clk
0:02:17.7]} 19... fxe6 {[%clk 0:02:32.2]} 20. Ra6 {[%clk 0:02:15.8]} 20... e5
{[%clk 0:02:22.7]} 21. Rxc6 {[%clk 0:02:16]} 21... Rad8 {[%clk 0:02:20.5]} 22.
Rxc7 {[%clk 0:02:12.4]} 22... Rd2 {[%clk 0:02:19.5]} 23. Ne4 {[%clk 0:02:13.1]}
23... Rd4 {[%clk 0:02:12.2]} 24. h3 {[%clk 0:02:08.9]} 24... Nh6 {[%clk
0:02:12.3]} 25. Ng5 {[%clk 0:02:05.2]} 25... Rd2 {[%clk 0:02:10.3]} 26. Rxe5
{[%clk 0:02:01.8]} 26... Rf8 {[%clk 0:02:01.9]} 27. Ree7 {[%clk 0:01:51.5]}
27... Nf5 {[%clk 0:01:57.7]} 28. Rf7 {[%clk 0:01:42.4]} 28... Rxf7 {[%clk
0:01:49]} 29. Rxf7 {[%clk 0:01:43.3]} 29... Ne3 {[%clk 0:01:44.7]} 30. Rf2
{[%clk 0:01:35.6]} 30... Rd1+ {[%clk 0:01:44.7]} 31. Kh2 {[%clk 0:01:33]} 31...
h6 {[%clk 0:01:44.7]} 32. Ne6 {[%clk 0:01:12]} 32... Nf1+ {[%clk 0:01:44.5]} 33.
Kg1 {[%clk 0:01:10.1]} 33... Ng3+ {[%clk 0:01:44.7]} 34. Kh2 {[%clk 0:01:09.7]}
34... Nf1+ {[%clk 0:01:45.2]} 35. Kg1 {[%clk 0:01:07.9]} 35... Ne3+ {[%clk
0:01:39.7]} 36. Kh2 {[%clk 0:01:04.8]} 36... Rc1 {[%clk 0:01:40.3]} 37. c4
{[%clk 0:00:41.9]} 37... Nf1+ {[%clk 0:01:38]} 38. Kg1 {[%clk 0:00:41]} 38...
Ne3+ {[%clk 0:01:38.6]} 39. Kh2 {[%clk 0:00:41.6]} 39... a5 {[%clk 0:01:37.5]}
40. g4 {[%clk 0:00:38.9]} 40... Nd1 {[%clk 0:01:31.2]} 41. Rd2 {[%clk
0:00:33.3]} 41... Ne3 {[%clk 0:01:30.2]} 42. Re2 {[%clk 0:00:31.4]} 42... Nd1
{[%clk 0:01:20.9]} 43. c5 {[%clk 0:00:27.1]} 43... Kf7 {[%clk 0:01:20.8]} 44. c6
{[%clk 0:00:26.7]} 44... Kg6 {[%clk 0:01:17.8]} 45. c7 {[%clk 0:00:26]} 45...
Rc6 {[%clk 0:01:15.8]} 46. Rd2 {[%clk 0:00:22.4]} 46... Ne3 {[%clk 0:01:15.9]}
47. Rd8 {[%clk 0:00:19.8]} 47... Rc2+ {[%clk 0:01:16.4]} 48. Kg1 {[%clk
0:00:18.7]} 48... Rg2+ {[%clk 0:00:49.9]} 49. Kh1 {[%clk 0:00:17.4]} 49... Rg3
{[%clk 0:00:45.9]} 50. c8=Q {[%clk 0:00:17.1]} 50... Rxh3+ {[%clk 0:00:46.8]}
51. Kg1 {[%clk 0:00:17.4]} 51... Nxg4 {[%clk 0:00:47.6]} 52. Nf8+ {[%clk
0:00:16.2]} 52... Kh5 {[%clk 0:00:47.7]} 53. Rd5+ {[%clk 0:00:16.7]} 53... g5
{[%clk 0:00:48.2]} 54. Qe8+ {[%clk 0:00:15.4]} 54... Kh4 {[%clk 0:00:48.9]} 55.
Ng6+ {[%clk 0:00:16]} 55... Kg3 {[%clk 0:00:49.5]} 56. Rd3+ {[%clk 0:00:16.7]}
1-0

[Event "Late-Titled-Tuesday-Blitz-June-04-2024"]
[Site "Chess.com"]
[Date "2024.06.04"]
[Round "3"]
[White "komogro"]
[Black "AlejandroArias"]
[Result "0-1"]
[WhiteElo "2554"]
[BlackElo "2391"]
[TimeControl "180+1"]
[EndTime "14:27:44 PDT"]
[Termination "AlejandroArias won on time"]

1. e4 {[%clk 0:02:59.5]} 1... c5 {[%clk 0:02:59.1]} 2. Nc3 {[%clk 0:02:59.9]}
2... Nc6 {[%clk 0:02:57.9]} 3. g3 {[%clk 0:03:00.2]} 3... g6 {[%clk 0:02:58.3]}
4. Bg2 {[%clk 0:03:00.9]} 4... Bg7 {[%clk 0:02:58.7]} 5. d3 {[%clk 0:03:01.8]}
5... e6 {[%clk 0:02:58.1]} 6. Nh3 {[%clk 0:03:01.9]} 6... Nge7 {[%clk
0:02:57.4]} 7. O-O {[%clk 0:03:01]} 7... O-O {[%clk 0:02:57.1]} 8. Be3 {[%clk
0:03:01.6]} 8... Nd4 {[%clk 0:02:56.6]} 9. Qd2 {[%clk 0:02:59.3]} 9... d6 {[%clk
0:02:54]} 10. Bh6 {[%clk 0:02:59]} 10... Rb8 {[%clk 0:02:40.3]} 11. Nd1 {[%clk
0:02:56.1]} 11... e5 {[%clk 0:02:39.4]} 12. Bxg7 {[%clk 0:02:55.7]} 12... Kxg7
{[%clk 0:02:38.1]} 13. f4 {[%clk 0:02:51.8]} 13... f6 {[%clk 0:02:34.6]} 14. c3
{[%clk 0:02:44.5]} 14... Ndc6 {[%clk 0:02:34.5]} 15. Ne3 {[%clk 0:02:36.5]}
15... Be6 {[%clk 0:02:27.9]} 16. f5 {[%clk 0:02:35.9]} 16... Bg8 {[%clk
0:02:19.4]} 17. Ng4 {[%clk 0:02:35.4]} 17... g5 {[%clk 0:02:06.9]} 18. Nxg5
{[%clk 0:02:35.2]} 18... fxg5 {[%clk 0:02:06.9]} 19. Qxg5+ {[%clk 0:02:08.7]}
19... Kh8 {[%clk 0:01:58.7]} 20. f6 {[%clk 0:01:32.4]} 20... Ng6 {[%clk
0:01:56.8]} 21. h4 {[%clk 0:01:32.9]} 21... Be6 {[%clk 0:01:43.4]} 22. h5 {[%clk
0:01:32.1]} 22... Rg8 {[%clk 0:01:43.4]} 23. Nh6 {[%clk 0:01:18.5]} 23... Nge7
{[%clk 0:01:16.5]} 24. Nxg8 {[%clk 0:00:23.6]} 24... Qxg8 {[%clk 0:01:17.4]} 25.
Qh4 {[%clk 0:00:22.6]} 25... Nc8 {[%clk 0:01:12.7]} 26. Bh3 {[%clk 0:00:21.7]}
26... Bf7 {[%clk 0:01:02.1]} 27. g4 {[%clk 0:00:18.6]} 27... h6 {[%clk
0:00:58.6]} 28. Rf5 {[%clk 0:00:18.3]} 28... Be6 {[%clk 0:00:54.8]} 29. f7
{[%clk 0:00:17.7]} 29... Bxf7 {[%clk 0:00:46.6]} 30. g5 {[%clk 0:00:17.8]} 30...
N8e7 {[%clk 0:00:42.8]} 31. g6 {[%clk 0:00:10.1]} 31... Nxf5 {[%clk 0:00:40.1]}
32. Bxf5 {[%clk 0:00:09.5]} 32... Qg7 {[%clk 0:00:28]} 33. Kh2 {[%clk
0:00:06.5]} 33... Bg8 {[%clk 0:00:27.7]} 34. Rf1 {[%clk 0:00:01.7]} 34... Rf8
{[%clk 0:00:27.3]} 0-1

[Event "Late-Titled-Tuesday-Blitz-June-04-2024"]
[Site "Chess.com"]
[Date "2024.06.04"]
[Round "3"]
[White "sergiochess83"]
[Black "slidingknight2775"]
[Result "0-1"]
[WhiteElo "2889"]
[BlackElo "2672"]
[TimeControl "180+1"]
[EndTime "14:27:45 PDT"]
[Termination "slidingknight2775 won by resignation"]

1. d4 {[%clk 0:02:55.5]} 1... Nf6 {[%clk 0:03:00.1]} 2. c4 {[%clk 0:02:52.3]}
2... e6 {[%clk 0:03:00]} 3. g3 {[%clk 0:02:51.5]} 3... d5 {[%clk 0:02:59.4]} 4.
Bg2 {[%clk 0:02:51.3]} 4... Be7 {[%clk 0:02:58.6]} 5. Nf3 {[%clk 0:02:51.2]}
5... O-O {[%clk 0:02:58.9]} 6. Qc2 {[%clk 0:02:51.6]} 6... c5 {[%clk 0:02:51.3]}
7. O-O {[%clk 0:02:49.2]} 7... Nc6 {[%clk 0:02:17.9]} 8. dxc5 {[%clk 0:02:45.3]}
8... d4 {[%clk 0:02:10.9]} 9. a3 {[%clk 0:02:38.8]} 9... a5 {[%clk 0:02:10.7]}
10. e3 {[%clk 0:02:33.8]} 10... e5 {[%clk 0:02:03.3]} 11. Rd1 {[%clk 0:02:02.2]}
11... Bxc5 {[%clk 0:01:45.4]} 12. exd4 {[%clk 0:01:57.4]} 12... Nxd4 {[%clk
0:01:38.5]} 13. Nxd4 {[%clk 0:01:57.1]} 13... Bxd4 {[%clk 0:01:39.4]} 14. Nc3
{[%clk 0:01:55.3]} 14... Bg4 {[%clk 0:01:39.4]} 15. Rf1 {[%clk 0:01:51.9]} 15...
Rc8 {[%clk 0:01:35.3]} 16. Nb5 {[%clk 0:01:35.2]} 16... Be6 {[%clk 0:01:16.1]}
17. Nxd4 {[%clk 0:01:25.3]} 17... exd4 {[%clk 0:01:00]} 18. b3 {[%clk
0:00:33.9]} 18... a4 {[%clk 0:00:59.6]} 19. bxa4 {[%clk 0:00:24.4]} 19... Rxc4
{[%clk 0:00:58.4]} 20. Qd2 {[%clk 0:00:19.2]} 20... Bd5 {[%clk 0:00:54.7]} 21.
Bb2 {[%clk 0:00:08]} 21... Bxg2 {[%clk 0:00:52.9]} 22. Kxg2 {[%clk 0:00:08.9]}
22... Rxa4 {[%clk 0:00:38.8]} 23. Rfe1 {[%clk 0:00:06.6]} 23... Qd5+ {[%clk
0:00:38.3]} 24. f3 {[%clk 0:00:06]} 24... h6 {[%clk 0:00:31.2]} 25. Rac1 {[%clk
0:00:05.6]} 25... Rd8 {[%clk 0:00:23.5]} 26. Qd3 {[%clk 0:00:05.9]} 26... b5
{[%clk 0:00:21.4]} 27. Re2 {[%clk 0:00:05.5]} 27... Rc4 {[%clk 0:00:20.9]} 28.
Rce1 {[%clk 0:00:01]} 28... Qc6 {[%clk 0:00:19.3]} 29. Qd2 {[%clk 0:00:01]}
29... d3 {[%clk 0:00:17.6]} 30. Rf2 {[%clk 0:00:01.5]} 30... Rc2 {[%clk
0:00:17.2]} 31. Qb4 {[%clk 0:00:01.8]} 31... Rxf2+ {[%clk 0:00:14.2]} 32. Kxf2
{[%clk 0:00:02.7]} 32... Qc2+ {[%clk 0:00:11.4]} 33. Kg1 {[%clk 0:00:02.5]}
33... d2 {[%clk 0:00:11.1]} 0-1

[Event "Late-Titled-Tuesday-Blitz-June-04-2024"]
[Site "Chess.com"]
[Date "2024.06.04"]
[Round "3"]
[White "PNEPaul"]
[Black "omer1997"]
[Result "0-1"]
[WhiteElo "1933"]
[BlackElo "2523"]
[TimeControl "180+1"]
[EndTime "14:27:45 PDT"]
[Termination "omer1997 won on time"]

1. e4 {[%clk 0:02:38]} 1... e5 {[%clk 0:02:53.7]} 2. Nf3 {[%clk 0:02:37.1]} 2...
Nf6 {[%clk 0:02:54.6]} 3. d3 {[%clk 0:02:36.2]} 3... Nc6 {[%clk 0:02:52.5]} 4.
Be2 {[%clk 0:02:35.9]} 4... Bc5 {[%clk 0:02:51.9]} 5. O-O {[%clk 0:02:35.3]}
5... d5 {[%clk 0:02:50.4]} 6. Nc3 {[%clk 0:02:32.6]} 6... d4 {[%clk 0:02:48.6]}
7. Nb1 {[%clk 0:02:32.2]} 7... O-O {[%clk 0:02:47.7]} 8. Bg5 {[%clk 0:02:31.8]}
8... h6 {[%clk 0:02:47.5]} 9. Bh4 {[%clk 0:02:31.7]} 9... Qd6 {[%clk 0:02:45]}
10. Na3 {[%clk 0:02:26.5]} 10... g5 {[%clk 0:02:39.8]} 11. Nc4 {[%clk
0:02:18.5]} 11... Qe6 {[%clk 0:02:36.6]} 12. Bg3 {[%clk 0:02:18.2]} 12... Nd7
{[%clk 0:02:36]} 13. h4 {[%clk 0:02:13.3]} 13... f6 {[%clk 0:02:26.2]} 14. Qd2
{[%clk 0:01:58.3]} 14... b5 {[%clk 0:02:19]} 15. Na3 {[%clk 0:01:47.5]} 15...
Bb4 {[%clk 0:02:12.1]} 16. Qc1 {[%clk 0:01:46.9]} 16... a6 {[%clk 0:02:10.9]}
17. hxg5 {[%clk 0:01:44.5]} 17... hxg5 {[%clk 0:02:10.5]} 18. Nxg5 {[%clk
0:01:41.6]} 18... fxg5 {[%clk 0:02:10.5]} 19. Qxg5+ {[%clk 0:01:41.4]} 19... Kh7
{[%clk 0:02:11]} 20. Bg4 {[%clk 0:01:37.4]} 20... Qg6 {[%clk 0:02:03.5]} 21. Bf5
{[%clk 0:01:35.3]} 21... Rxf5 {[%clk 0:02:01.3]} 22. Qxf5 {[%clk 0:01:34.8]}
22... Qxf5 {[%clk 0:02:01.2]} 23. exf5 {[%clk 0:01:34.3]} 23... Nf6 {[%clk
0:01:57.5]} 24. f4 {[%clk 0:01:20.9]} 24... e4 {[%clk 0:01:51.9]} 25. dxe4
{[%clk 0:01:19]} 25... Nxe4 {[%clk 0:01:52.8]} 26. Bh4 {[%clk 0:01:09.9]} 26...
Bxf5 {[%clk 0:01:49.9]} 27. Rad1 {[%clk 0:00:52]} 27... Rg8 {[%clk 0:01:44.9]}
28. Kh2 {[%clk 0:00:50]} 28... Rg4 {[%clk 0:01:36.2]} 29. g3 {[%clk 0:00:48.8]}
29... Bd6 {[%clk 0:01:31.4]} 30. Kg2 {[%clk 0:00:43.5]} 30... Rg8 {[%clk
0:01:25.1]} 31. Nb1 {[%clk 0:00:37.5]} 31... Bb4 {[%clk 0:01:16]} 32. Rh1 {[%clk
0:00:35.3]} 32... Kg6 {[%clk 0:01:15.2]} 33. Kf3 {[%clk 0:00:27.6]} 33... Nf6
{[%clk 0:01:12.4]} 34. Bxf6 {[%clk 0:00:23]} 34... Kxf6 {[%clk 0:01:13.3]} 35.
Kf2 {[%clk 0:00:12.9]} 35... Bxc2 {[%clk 0:01:11.5]} 36. Rh6+ {[%clk 0:00:10.3]}
36... Rg6 {[%clk 0:01:11.2]} 37. Rxg6+ {[%clk 0:00:10.1]} 37... Kxg6 {[%clk
0:01:12.1]} 38. Rc1 {[%clk 0:00:08.1]} 38... d3 {[%clk 0:01:09.5]} 39. Ke3
{[%clk 0:00:07]} 39... Bc5+ {[%clk 0:01:09]} 40. Kd2 {[%clk 0:00:05.9]} 40...
Kf5 {[%clk 0:01:05.5]} 41. Nc3 {[%clk 0:00:05.7]} 41... Bb4 {[%clk 0:01:01.5]}
42. a3 {[%clk 0:00:04.7]} 42... Bxc3+ {[%clk 0:00:59.3]} 43. bxc3 {[%clk
0:00:04.4]} 43... Na5 {[%clk 0:00:58.6]} 44. Rg1 {[%clk 0:00:03]} 44... Nc4+
{[%clk 0:00:56.7]} 45. Kc1 {[%clk 0:00:02.9]} 45... Bb3 {[%clk 0:00:54.4]} 46.
g4+ {[%clk 0:00:02.8]} 46... Kxf4 {[%clk 0:00:53.4]} 47. g5 {[%clk 0:00:02.7]}
47... d2+ {[%clk 0:00:52.2]} 48. Kb1 {[%clk 0:00:02.1]} 48... d1=Q+ {[%clk
0:00:49.1]} 49. Rxd1 {[%clk 0:00:01.7]} 49... Bxd1 {[%clk 0:00:50]} 50. g6
{[%clk 0:00:01.1]} 50... Bb3 {[%clk 0:00:47.9]} 0-1